bitfinex/quotes_ETHUSD_20251201
["timestamp","ask_amount","ask_price","bid_price","bid_amount"]
[1764588927270,0.002,2848.0,2847.9,1.71118044]
[1764588927679,0.002,2848.0,2847.9,5.22253968]
[1764588927882,0.002,2848.0,2847.9,1.71118044]
[1764588928070,0.223,2848.2,2847.9,1.71118044]
[1764588928255,0.32289793,2848.2,2848.1,0.663]
[1764588928578,0.09989793,2848.2,2848.1,0.663]
[1764588928778,0.09989793,2848.2,2848.1,1.1522]
[1764588928959,0.002,2848.3,2847.9,0.001]
[1764588929159,0.002,2848.3,2847.9,0.4902]
[1764588929957,0.002,2848.3,2847.9,4.00155323]
[1764588930279,0.002,2848.3,2848.2,0.4783]
[1764588930280,0.407504,2848.3,2848.2,0.4783]
[1764588931156,0.407504,2848.3,2848.2,0.9675]
[1764588931473,0.406704,2848.3,2848.2,0.9675]
[1764588936200,0.406704,2848.3,2848.2,0.4783]
[1764588936201,0.629704,2848.3,2848.2,0.4783]
[1764588943979,0.629704,2848.3,2848.0,0.4892]
[1764588950731,0.629704,2848.3,2848.2,0.4783]
[1764588950732,0.406704,2848.3,2848.2,0.4783]
[1764588950932,0.629704,2848.3,2848.2,0.4783]
[1764588951605,0.629704,2848.3,2848.2,0.9675]
[1764588954323,0.628904,2848.3,2848.2,0.9675]
[1764588954923,0.50580193,2848.3,2848.2,0.9675]
[1764588955233,0.72880193,2848.3,2848.2,0.9675]
[1764588956603,0.82869987,2848.3,2848.2,0.9675]
[1764588957425,0.82869987,2848.3,2848.2,0.4783]
[1764588957625,0.82869987,2848.3,2848.2,0.9465]
[1764588960339,0.60569987,2848.3,2848.2,0.4783]
[1764588960650,0.82869987,2848.3,2848.2,0.4783]
[1764588961955,0.82869987,2848.3,2848.2,0.9465]
[1764588962447,0.82869987,2848.3,2848.2,0.4783]
[1764588963523,0.628904,2848.3,2848.0,0.4692]
[1764588963832,0.19979587,2848.1,2848.0,0.4692]
[1764588964335,0.19979587,2848.1,2848.0,0.9326]
[1764588964848,0.19979587,2848.1,2848.0,1.37719265]
[1764588965456,0.0004,2848.3,2848.0,11.83693445]
[1764588965658,0.50580193,2848.3,2848.2,0.6609]
[1764588966036,0.405904,2848.3,2848.2,0.6609]
[1764588966370,0.405904,2848.3,2848.2,0.4634]
[1764588967034,0.60569987,2848.3,2848.2,0.4634]
[1764588971841,0.60569987,2848.3,2848.0,0.001]
[1764588971842,0.405904,2848.3,2848.0,0.001]
[1764588972042,0.405904,2848.3,2848.2,0.4634]
[1764588974167,0.60569987,2848.3,2848.2,0.4634]
[1764588977276,0.20019587,2848.3,2848.2,0.9316]
[1764588977490,0.19879689,2848.3,2848.2,1.74683534]
[1764588978274,0.19879689,2848.3,2848.0,0.001]
[1764588978275,30.6649041,2848.2,2848.0,0.001]
[1764588978460,5.411528,2848.1,2848.0,0.001]
[1764588978763,6.040032,2848.1,2848.0,0.001]
[1764588979068,0.476404,2848.1,2848.0,0.001]
[1764588979249,0.84019974,2848.1,2848.0,0.001]
[1764588979462,1.31449974,2848.1,2848.0,0.001]
[1764588980802,5.65925067,2848.1,2848.0,0.001]
[1764588980968,27.72458367,2848.1,2848.0,0.001]
[1764588981664,28.07640078,2848.1,2848.0,0.001]
[1764588981866,36.68810017,2848.1,2848.0,0.001]
[1764588982177,37.03991728,2848.1,2848.0,0.001]
[1764588982893,36.68810017,2848.1,2848.0,0.001]
[1764588985658,33.1769875,2848.1,2848.0,0.001]
[1764588987411,0.09989793,2848.1,2848.0,7.09888095]
[1764588987706,0.10189793,2848.3,2848.0,0.9873]
[1764588988004,0.10189793,2848.3,2848.2,0.6846]
[1764588988498,0.10189793,2848.3,2848.2,1.1843]
[1764588988793,0.002,2848.3,2848.2,1.1843]
[1764588989193,0.002,2848.3,2848.2,4.7231835]
[1764588989375,0.225,2848.3,2848.2,5.54671186]
[1764588990177,0.225,2848.3,2848.2,6.04641186]
[1764588991995,0.002,2848.3,2848.2,6.04641186]
[1764588992298,0.225,2848.3,2848.2,6.04641186]
[1764588993401,0.002,2848.3,2848.2,6.04641186]
[1764588998782,0.002,2848.3,2848.2,5.54671186]
[1764588999104,0.002,2848.3,2848.2,11.65829281]
[1764588999504,0.002,2848.3,2848.2,12.15799281]
[1764589001106,0.0012,2848.3,2848.2,12.15799281]
[1764589009698,0.002,2848.4,2848.3,0.72559411]
[1764589009898,0.002,2848.4,2848.3,2.58616406]
[1764589015438,0.002,2848.4,2848.3,6.09703019]
[1764589021150,0.002,2849.1,2848.3,6.09703019]
[1764589021151,0.002,2849.1,2848.6,0.4907]
[1764589021349,0.002,2849.1,2848.9,0.72559411]
[1764589021662,0.00186999,2849.2,2849.1,6.83717506]
[1764589021966,0.00186999,2849.2,2849.1,7.51687506]
[1764589022256,0.00186999,2849.2,2849.1,8.01387506]
[1764589022463,0.00186999,2849.2,2849.1,8.15457224]
[1764589022624,0.00186999,2849.2,2849.1,8.97002946]
[1764589023535,0.00106999,2849.2,2849.1,12.47990977]
[1764589030500,0.00106999,2849.2,2849.1,19.68550148]
[1764589035785,0.00106999,2849.2,2849.1,13.02691515]
[1764589040404,0.00106999,2849.2,2849.1,11.52545793]
[1764589041006,0.00106999,2849.2,2849.1,12.02245793]
[1764589045510,0.00106999,2849.2,2849.1,11.52545793]
[1764589045714,0.05066999,2849.2,2849.1,11.03475793]
[1764589046218,0.00106999,2849.2,2849.1,11.50785793]
[1764589046516,0.00026999,2849.2,2849.1,11.98505793]
[1764589048311,0.05966999,2849.2,2849.0,0.001]
[1764589048520,0.0637,2849.1,2849.0,3.51100351]
[1764589048726,0.0637,2849.1,2849.0,10.89518395]
[1764589049720,0.26349587,2849.1,2849.0,10.89518395]
[1764589050387,0.74499587,2849.1,2849.0,10.89518395]
[1764589053124,0.26349587,2849.1,2849.0,10.89518395]
[1764589054806,0.00026999,2849.2,2849.1,0.72559411]
[1764589055006,0.05106999,2849.2,2849.1,0.72559411]
[1764589056830,0.05106999,2849.2,2849.1,4.23547442]
[1764589058630,0.00026999,2849.2,2849.1,4.23547442]
[1764589058831,0.00026999,2849.2,2849.1,4.72567442]
[1764589062899,0.00026999,2849.2,2849.1,4.23547442]
[1764589063105,0.46486999,2849.2,2849.1,4.23547442]
[1764589065429,0.00026999,2849.2,2849.1,4.23547442]
[1764589067429,0.00026999,2849.2,2849.1,4.72567442]
[1764589067929,0.05106999,2849.2,2849.1,4.23547442]
[1764589069733,0.05026999,2849.2,2849.1,4.23547442]
[1764589070144,0.05226999,2849.2,2849.1,4.23547442]
[1764589072768,0.54656999,2849.2,2849.1,4.23547442]
[1764589073125,0.05226999,2849.2,2849.1,4.23547442]
[1764589077368,0.54206999,2849.2,2849.0,0.001]
[1764589077567,0.20919587,2849.1,2849.0,0.001]
[1764589077871,0.10929793,2849.1,2849.0,0.72659411]
[1764589078054,0.59909793,2849.1,2849.0,0.72659411]
[1764589079674,0.59909793,2849.1,2849.0,0.001]
[1764589079850,0.4992,2849.1,2849.0,0.001]
[1764589080363,0.69899587,2849.1,2849.0,0.001]
[1764589080544,0.4992,2849.1,2849.0,0.001]
[1764589089475,27.97157,2849.1,2849.0,0.001]
[1764589089679,22.654697,2849.1,2849.0,0.001]
[1764589090469,30.24012511,2849.1,2849.0,0.001]
[1764589090664,29.888308,2849.1,2849.0,0.001]
[1764589090869,30.24012511,2849.1,2849.0,0.001]
[1764589091068,32.93707667,2849.1,2849.0,0.001]
[1764589091390,37.17744087,2849.1,2849.0,0.001]
[1764589091756,37.17744087,2849.1,2848.8,0.001]
[1764589092087,33.090204,2848.9,2848.8,0.001]
[1764589092288,30.660532,2848.9,2848.8,0.001]
[1764589092459,5.671131,2848.9,2848.8,0.001]
[1764589092664,5.892331,2848.9,2848.8,0.001]
[1764589094263,33.7991244,2848.9,2848.8,0.001]
[1764589094787,3.7991244,2848.9,2848.8,0.001]
[1764589095091,33.7991244,2848.9,2848.8,0.001]
[1764589095600,23.69900874,2848.9,2848.8,0.001]
[1764589095807,24.15672394,2848.9,2848.8,0.001]
[1764589096496,35.10589594,2848.9,2848.8,0.001]
[1764589096876,34.86986994,2848.9,2848.8,0.001]
[1764589097274,34.76397185,2848.9,2848.8,0.001]
[1764589097475,34.99999785,2848.9,2848.8,0.001]
[1764589097888,34.64818074,2848.9,2848.8,0.001]
[1764589098189,31.41431105,2848.9,2848.8,0.001]
[1764589098592,34.50294151,2848.9,2848.8,0.001]
[1764589098803,34.96740618,2848.9,2848.8,0.001]
[1764589099563,4.96740618,2848.9,2848.8,0.001]
[1764589099679,34.96740618,2848.9,2848.8,0.001]
[1764589099881,34.61540618,2848.9,2848.8,0.001]
[1764589100600,32.50340618,2848.9,2848.8,0.001]
[1764589101500,32.15158907,2848.9,2848.8,0.001]
[1764589101704,32.45340618,2848.9,2848.8,0.001]
[1764589105978,32.10158907,2848.9,2848.8,0.001]
[1764589106184,32.45340618,2848.9,2848.8,0.001]
[1764589106604,2.45340618,2848.9,2848.8,0.001]
[1764589106781,32.45340618,2848.9,2848.8,0.001]
[1764589107615,2.55930427,2848.9,2848.8,0.001]
[1764589107785,32.91112138,2848.9,2848.8,0.001]
[1764589108112,2.91112138,2848.9,2848.8,0.001]
[1764589108291,32.91112138,2848.9,2848.8,0.001]
[1764589108713,32.45340618,2848.9,2848.8,0.001]
[1764589108909,6.8354854,2848.9,2848.8,0.001]
[1764589109102,6.3296874,2848.9,2848.8,0.001]
[1764589109797,31.74832951,2848.9,2848.8,0.001]
[1764589110314,29.6829024,2848.9,2848.8,0.001]
[1764589110484,22.49593251,2848.9,2848.8,0.001]
[1764589110686,31.99004151,2848.9,2848.8,0.001]
[1764589111293,32.1440224,2848.9,2848.8,0.001]
[1764589111498,31.99004151,2848.9,2848.8,0.001]
[1764589112128,32.13083229,2848.9,2848.8,0.001]
[1764589113098,32.63663029,2848.9,2848.8,0.001]
[1764589113297,32.28481318,2848.9,2848.8,0.001]
[1764589113503,32.13083229,2848.9,2848.8,0.001]
[1764589114595,32.63663029,2848.9,2848.8,0.001]
[1764589115123,22.83958318,2848.9,2848.8,0.4949]
[1764589115302,22.6987924,2848.9,2848.8,0.4949]
[1764589115820,30.9764244,2848.9,2848.8,0.001]
[1764589116516,31.32824151,2848.9,2848.8,0.001]
[1764589117417,30.3499204,2848.9,2848.8,0.4949]
[1764589117621,30.222,2848.9,2848.8,0.986]
[1764589117827,0.222,2848.9,2848.8,0.986]
[1764589118401,3.076658,2848.9,2848.8,0.986]
[1764589118797,3.894704,2848.9,2848.8,0.986]
[1764589119830,0.222,2848.9,2848.8,0.986]
[1764589120036,9.218462,2848.9,2848.8,0.986]
[1764589120544,9.218462,2848.9,2848.8,0.4949]
[1764589120831,10.982562,2848.9,2848.8,0.001]
[1764589121019,12.29140702,2848.9,2848.8,0.001]
[1764589122061,12.29140702,2848.9,2848.5,0.03125213]
[1764589122062,15.804935,2848.8,2848.5,0.03125213]
[1764589122607,15.804935,2848.8,2848.4,0.001]
[1764589123035,15.804935,2848.8,2848.7,0.4939]
[1764589123228,15.804135,2848.8,2848.7,0.4939]
[1764589124942,15.804135,2848.8,2848.7,0.985]
[1764589125245,0.002,2848.9,2848.7,10.60675077]
[1764589125427,0.002,2848.9,2848.8,0.985]
[1764589126221,0.002,2848.9,2848.8,4.49524992]
[1764589127043,0.20179587,2848.9,2848.8,4.49524992]
[1764589127842,0.09989793,2849.1,2848.9,0.72559411]
[1764589128012,0.09989793,2849.1,2849.0,7.280138]
[1764589128341,0.09989793,2849.1,2849.0,10.79014151]
[1764589129114,0.002,2849.2,2849.1,0.72559411]
[1764589129345,0.002,2849.2,2849.1,2.1601549]
[1764589131538,0.002,2849.2,2849.1,5.67003521]
[1764589135948,0.002,2849.2,2849.1,5.87183108]
[1764589137336,0.002,2849.2,2849.1,5.67003521]
[1764589138824,0.0012,2849.2,2849.1,5.67003521]
[1764589140052,0.0012,2849.2,2849.1,5.87183108]
[1764589145859,0.19979587,2849.9,2849.1,12.4004917]
[1764589146050,0.35181711,2850.2,2849.5,0.72559411]
[1764589146226,0.35181711,2850.2,2849.8,0.4764]
[1764589146722,0.4556,2850.2,2849.8,0.4764]
[1764589146928,0.4556,2850.2,2849.8,0.9336]
[1764589147148,0.80741711,2850.2,2849.8,0.9336]
[1764589147348,0.4556,2850.2,2849.8,0.9336]
[1764589147831,0.4556,2850.2,2849.8,4.44261477]
[1764589148149,0.80741711,2850.2,2849.8,0.9336]
[1764589148454,2.112,2850.1,2849.7,3.50907588]
[1764589148755,0.4556,2850.1,2849.7,3.50907588]
[1764589148953,0.35181711,2850.2,2849.7,3.50907588]
[1764589149155,0.80741711,2850.2,2849.7,3.50907588]
[1764589149461,0.4556,2850.2,2849.7,3.50907588]
[1764589149957,0.4556,2850.2,2849.6,7.01849736]
[1764589150258,0.4556,2850.2,2849.6,7.47569736]
[1764589152859,2.917491,2850.4,2849.6,7.01849736]
[1764589153165,0.19979587,2849.9,2849.7,0.4572]
[1764589153457,0.4556,2850.3,2849.7,0.4572]
[1764589154664,0.4556,2850.3,2849.6,7.01849736]
[1764589159941,0.4556,2850.3,2849.6,7.47569736]
[1764589160569,0.4556,2850.3,2849.6,7.01849736]
[1764589160741,0.19979587,2850.0,2849.7,0.4572]
[1764589161148,0.19979587,2850.0,2849.9,0.4764]
[1764589161887,0.19979587,2850.0,2849.9,3.98529504]
[1764589162098,0.19899587,2850.0,2849.9,3.98529504]
[1764589162585,0.54199587,2850.0,2849.9,3.50889504]
[1764589162754,0.7974,2850.0,2849.9,3.50889504]
[1764589163072,0.405504,2849.9,2849.1,0.677504]
[1764589163274,0.78633499,2849.8,2849.1,7.01976062]
[1764589163486,0.936904,2849.9,2849.1,10.52964093]
[1764589163685,0.936904,2849.9,2849.1,11.00354093]
[1764589163686,0.4843,2849.8,2849.1,11.00354093]
[1764589167380,0.4843,2849.8,2849.1,7.01976062]
[1764589167577,0.3115,2849.2,2849.0,3.51093005]
[1764589167776,0.3115,2849.1,2849.0,3.51096066]
[1764589168266,0.791,2849.1,2849.0,0.001]
[1764589168889,1.94164859,2849.1,2849.0,0.001]
[1764589169198,1.33726109,2849.1,2849.0,0.001]
[1764589170399,1.6882782,2849.1,2849.0,0.001]
[1764589170596,0.93175709,2849.1,2849.0,0.001]
[1764589170895,5.274549,2849.1,2849.0,0.001]
[1764589171495,4.949834,2849.1,2849.0,0.001]
[1764589171672,4.57399261,2849.1,2849.0,0.001]
[1764589171871,1.52205861,2849.1,2849.0,0.001]
[1764589172069,4.064934,2849.1,2849.0,0.001]
[1764589172970,20.661301,2849.1,2849.0,0.001]
[1764589173190,17.402601,2849.1,2849.0,0.001]
[1764589173386,14.327105,2849.1,2849.0,0.001]
[1764589173667,7.586508,2849.1,2849.0,0.001]
[1764589173908,8.05696539,2849.1,2849.0,0.001]
[1764589175108,14.84677739,2849.1,2849.0,0.001]
[1764589175801,7.36348439,2849.1,2849.0,0.001]
[1764589176007,1.418504,2849.1,2849.0,0.001]
[1764589176298,3.141362,2849.1,2849.0,0.001]
[1764589178107,22.437766,2849.1,2849.0,0.001]
[1764589179882,14.339366,2849.1,2849.0,0.001]
[1764589180206,11.877395,2849.1,2849.0,0.001]
[1764589181009,1.013,2849.1,2849.0,0.001]
[1764589181185,14.954595,2849.1,2849.0,0.001]
[1764589181506,14.2578545,2849.1,2849.0,0.001]
[1764589182206,18.7101575,2849.1,2849.0,0.001]
[1764589183212,21.1547995,2849.1,2849.0,0.001]
[1764589183708,9.6075395,2849.1,2849.0,0.001]
[1764589183901,7.480539,2849.1,2849.0,0.001]
[1764589184097,8.480539,2849.1,2849.0,0.001]
[1764589184686,7.592023,2849.1,2849.0,0.001]
[1764589184887,2.749504,2849.1,2849.0,0.001]
[1764589185914,0.5327,2849.1,2849.0,0.001]
[1764589187118,0.32189793,2849.1,2849.0,0.919]
[1764589187313,0.09989793,2849.1,2849.0,0.919]
[1764589187514,0.32189793,2849.1,2849.0,4.42900351]
[1764589187904,0.32189793,2849.1,2849.0,0.919]
[1764589188218,0.32189793,2849.1,2849.0,4.42900351]
[1764589188404,0.32189793,2849.1,2849.0,0.919]
[1764589189001,0.32189793,2849.1,2849.0,0.4551]
[1764589195034,0.5374,2849.1,2849.0,0.001]
[1764589196628,1.0072,2849.1,2849.0,0.001]
[1764589196930,0.222,2849.1,2849.0,0.4763]
[1764589197188,0.05,2849.8,2849.0,11.86581115]
[1764589197295,0.6614,2849.9,2849.3,0.4753]
[1764589197504,2.077819,2849.7,2849.3,0.4753]
[1764589198007,0.3251,2849.4,2849.0,3.51100351]
[1764589198207,0.222,2849.3,2849.0,3.51100351]
[1764589198417,0.222,2849.3,2849.0,3.98020351]
[1764589198631,0.222,2849.3,2849.0,4.72944077]
[1764589198948,0.222,2849.3,2849.2,0.4753]
[1764589201058,0.222,2849.3,2849.2,0.9445]
[1764589201333,0.09989793,2849.3,2849.2,10.64549633]
[1764589201500,0.09989793,2849.3,2849.2,11.11469633]
[1764589201703,0.09989793,2849.3,2849.2,12.06325738]
[1764589202105,0.09690099,2849.3,2849.2,12.06325738]
[1764589203309,0.8905,2849.9,2849.2,8.91256862]
[1764589203610,0.8905,2849.9,2849.3,0.4692]
[1764589204822,0.8905,2849.9,2849.3,1.19479411]
[1764589205055,0.4207,2849.9,2849.5,3.50938761]
[1764589205673,0.4207,2849.9,2849.5,3.97858761]
[1764589206948,0.4227,2849.9,2849.5,3.97858761]
[1764589207950,0.4219,2849.9,2849.5,3.97858761]
[1764589209432,0.8917,2849.9,2849.5,3.97858761]
[1764589210256,0.8917,2849.9,2849.5,4.87487936]
[1764589216934,0.8917,2849.9,2849.5,0.4692]
[1764589217256,0.8917,2849.9,2848.9,6.32902625]
[1764589217257,0.4219,2849.9,2849.2,0.4692]
[1764589217450,0.6705,2849.9,2849.3,0.4692]
[1764589217646,0.222,2849.8,2849.3,0.4692]
[1764589218442,0.002,2849.9,2849.7,0.4753]
[1764589218650,0.222,2849.8,2849.7,0.4753]
[1764589219569,0.222,2849.8,2849.5,3.9785365]
[1764589220131,0.222,2849.8,2849.5,0.4692]
[1764589220651,0.222,2849.8,2849.4,3.50944953]
[1764589220856,0.222,2849.8,2849.4,0.4692]
[1764589221035,0.222,2849.8,2849.2,7.01951424]
[1764589221233,0.222,2849.8,2849.5,0.4692]
[1764589221959,0.222,2849.8,2849.2,7.01951424]
[1764589222848,0.222,2849.8,2849.2,3.50975712]
[1764589223054,0.7017,2849.8,2849.2,7.01951424]
[1764589223554,0.7017,2849.8,2849.3,0.4932]
[1764589223940,0.222,2849.8,2849.4,3.50951077]
[1764589224440,0.222,2849.8,2849.5,0.4932]
[1764589225039,0.7017,2849.8,2849.3,4.00276299]
[1764589225572,0.7017,2849.8,2849.3,3.51056299]
[1764589225773,0.222,2849.8,2849.3,0.4942]
[1764589226073,0.4797,2849.7,2849.3,4.00380817]
[1764589230476,0.4797,2849.7,2849.3,0.001]
[1764589230676,0.3305,2849.4,2849.3,0.001]
[1764589230975,0.5517,2849.4,2849.3,0.001]
[1764589231181,1.0066,2849.4,2849.3,0.001]
[1764589231882,31.412104,2849.4,2849.3,0.001]
[1764589232083,20.95295522,2849.4,2849.3,0.001]
[1764589232250,21.50534298,2849.4,2849.3,0.001]
[1764589232781,25.01485375,2849.4,2849.3,0.001]
[1764589233081,39.84608975,2849.4,2849.3,0.001]
[1764589233781,39.49415606,2849.4,2849.3,0.001]
[1764589234691,39.84608975,2849.4,2849.3,0.001]
[1764589235161,39.49415606,2849.4,2849.3,0.001]
[1764589235364,39.84608975,2849.4,2849.3,0.001]
[1764589235861,34.41700506,2849.4,2849.3,0.001]
[1764589236058,19.95375706,2849.4,2849.3,0.001]
[1764589236465,20.30569075,2849.4,2849.3,0.001]
[1764589237086,9.84608975,2849.4,2849.3,0.001]
[1764589237318,34.89530185,2849.4,2849.3,0.001]
[1764589237592,7.43958308,2849.4,2849.3,0.001]
[1764589237782,7.67248308,2849.4,2849.3,0.001]
[1764589237984,11.75592754,2849.4,2849.3,0.001]
[1764589238194,22.16342495,2849.4,2849.3,0.4562]
[1764589238496,6.50839337,2849.4,2849.3,0.001]
[1764589238670,4.74695087,2849.4,2849.3,0.001]
[1764589239260,11.87849687,2849.4,2849.3,0.001]
[1764589240286,11.87146487,2849.4,2849.3,0.001]
[1764589241187,1.20639587,2849.4,2849.3,0.001]
[1764589241361,11.98052387,2849.4,2849.3,0.001]
[1764589241565,13.57513632,2849.4,2849.3,0.001]
[1764589242079,8.03237132,2849.4,2849.3,0.001]
[1764589242275,9.82696287,2849.4,2849.3,0.001]
[1764589243291,18.25900264,2849.4,2849.3,0.001]
[1764589243603,13.74289187,2849.4,2849.3,0.4562]
[1764589243779,2.97899793,2849.4,2849.3,0.9297]
[1764589244384,3.04194793,2849.4,2849.3,0.9297]
[1764589245401,0.32389793,2849.4,2849.3,0.9297]
[1764589245798,0.224,2849.4,2849.3,4.43933394]
[1764589246003,0.20179587,2849.4,2849.3,5.2342517]
[1764589246208,0.10189793,2849.4,2849.3,5.2342517]
[1764589253527,0.10189793,2849.4,2849.3,1.72461776]
[1764589253681,0.002,2849.4,2849.3,1.25111776]
[1764589253885,0.002,2849.4,2849.3,0.4562]
[1764589254114,0.0012,2849.4,2849.3,4.41623394]
[1764589254522,0.4626,2849.4,2849.3,0.001]
[1764589254686,0.0012,2849.4,2849.3,0.4611]
[1764589255181,0.0012,2849.4,2849.3,0.001]
[1764589255182,13.665437,2849.4,2849.3,0.001]
[1764589255387,11.0431717,2849.4,2849.3,0.001]
[1764589255716,6.54594,2849.4,2849.3,0.001]
[1764589256088,6.87974,2849.4,2849.3,0.001]
[1764589258801,7.10174,2849.4,2849.3,0.001]
[1764589259129,10.61125077,2849.4,2849.3,0.001]
[1764589259292,11.01675477,2849.4,2849.3,0.001]
[1764589259490,12.61011474,2849.4,2849.3,0.001]
[1764589260718,8.13929997,2849.4,2849.3,0.001]
[1764589260926,8.13929997,2849.4,2849.3,0.4611]
[1764589260927,6.9086857,2849.4,2849.3,0.4611]
[1764589261099,0.8253457,2849.4,2849.3,0.4611]
[1764589261307,6.0179607,2849.4,2849.3,0.001]
[1764589261818,6.3517607,2849.4,2849.3,0.001]
[1764589262013,10.84737421,2849.4,2849.3,0.001]
[1764589262595,11.25287821,2849.4,2849.3,0.001]
[1764589263828,11.6048119,2849.4,2849.3,0.001]
[1764589264900,43.25701125,2849.4,2849.3,0.001]
[1764589266626,43.50904701,2849.4,2849.3,0.001]
[1764589266833,43.15711332,2849.4,2849.3,0.001]
[1764589267136,16.73671121,2849.4,2849.3,0.001]
[1764589267304,16.25112621,2849.4,2849.3,0.001]
[1764589267502,5.17699044,2849.4,2849.3,0.001]
[1764589267720,7.39369847,2849.4,2849.3,0.001]
[1764589267929,24.19627447,2849.4,2849.3,0.001]
[1764589268954,34.66865647,2849.4,2849.3,0.001]
[1764589269855,4.66865647,2849.4,2849.3,0.001]
[1764589270016,22.59600447,2849.4,2849.3,0.001]
[1764589270215,25.20653618,2849.4,2849.3,0.001]
[1764589271040,36.42444718,2849.4,2849.3,0.001]
[1764589271339,5.63433241,2849.4,2849.3,0.4611]
[1764589271538,3.0238007,2849.4,2849.3,0.4611]
[1764589272048,6.53331147,2849.4,2849.3,0.4611]
[1764589272414,3.0238007,2849.4,2849.3,0.4611]
[1764589272943,0.8253457,2849.4,2849.3,0.4611]
[1764589273150,3.4450827,2849.4,2849.3,0.4611]
[1764589273642,4.76095309,2849.4,2849.3,0.001]
[1764589273847,5.09605309,2849.4,2849.3,0.001]
[1764589274045,15.76508609,2849.4,2849.3,0.001]
[1764589274416,15.22460309,2849.4,2849.3,0.001]
[1764589274618,16.60011386,2849.4,2849.3,0.001]
[1764589275145,21.72279586,2849.4,2849.3,0.001]
[1764589275446,28.30509811,2849.4,2849.0,0.001]
[1764589275647,28.30509811,2849.4,2848.5,0.001]
[1764589275648,2.566504,2848.7,2848.5,0.001]
[1764589275838,32.516504,2848.6,2848.5,0.001]
[1764589276148,32.516504,2848.5,2847.8,0.001]
[1764589276359,39.23965706,2848.4,2847.8,0.001]
[1764589276649,44.92115124,2848.4,2847.8,0.001]
[1764589277024,44.87115124,2848.4,2847.8,0.001]
[1764589277224,48.38812945,2848.4,2847.8,0.001]
[1764589277626,48.03619576,2848.4,2847.8,0.001]
[1764589277934,48.38812945,2848.4,2847.8,0.001]
[1764589278119,48.03619576,2848.4,2847.8,0.001]
[1764589279943,48.25819576,2848.4,2847.8,0.001]
[1764589280446,41.5850427,2848.4,2847.8,0.001]
[1764589280872,38.07429983,2848.4,2847.8,0.001]
[1764589281166,44.57545289,2848.4,2847.8,0.001]
[1764589281326,36.40378235,2848.4,2847.8,0.001]
[1764589281871,36.54459345,2848.4,2847.8,0.001]
[1764589282159,14.42086545,2848.4,2847.8,0.001]
[1764589282462,44.42086545,2848.4,2847.8,0.001]
[1764589285453,43.90554637,2848.4,2847.8,0.001]
[1764589285856,44.42086545,2848.4,2847.8,0.001]
[1764589286438,32.566504,2848.1,2847.8,0.001]
[1764589286634,43.34150095,2848.1,2847.8,0.001]
[1764589286953,44.32176615,2848.1,2847.8,0.001]
[1764589287153,44.46260353,2848.1,2847.8,0.001]
[1764589287728,2.516504,2848.0,2847.8,0.001]
[1764589287935,34.45238829,2848.0,2847.8,0.001]
[1764589288129,37.00007593,2848.0,2847.8,0.001]
[1764589288457,41.14112893,2848.0,2847.8,0.001]
[1764589289057,44.84312893,2848.0,2847.8,0.001]
[1764589289758,45.56872304,2848.0,2847.8,0.001]
[1764589291356,45.92072304,2848.0,2847.8,0.001]
[1764589292176,55.53117836,2848.0,2847.8,0.001]
[1764589292374,0.405504,2846.6,2846.4,0.4886]
[1764589292674,3.730141,2846.5,2846.4,0.4886]
[1764589292858,3.453581,2846.5,2846.4,0.4886]
[1764589293060,3.453581,2846.5,2846.4,0.9518]
[1764589293232,3.2993,2846.5,2846.4,4.46500966]
[1764589293434,0.222,2846.5,2846.4,4.46500966]
[1764589294460,0.405504,2846.9,2846.4,4.46500966]
[1764589294644,0.222,2846.8,2846.5,0.4886]
[1764589294994,0.405504,2846.7,2846.5,0.4886]
[1764589295290,0.405504,2846.7,2846.6,3.51296283]
[1764589295495,0.627504,2846.7,2846.6,3.51296283]
[1764589295692,0.627504,2846.7,2846.6,4.46476283]
[1764589297185,0.627504,2846.7,2846.6,0.9518]
[1764589297703,0.405504,2846.7,2846.6,0.9518]
[1764589297991,0.627504,2846.7,2846.6,0.9518]
[1764589298284,0.627504,2846.7,2846.6,4.46476283]
[1764589298644,0.222,2846.7,2846.6,0.9518]
[1764589300381,0.2212,2846.7,2846.6,0.9518]
[1764589300763,0.222,2846.7,2846.6,0.9518]
[1764589301080,0.222,2846.7,2846.6,4.46476283]
[1764589301272,0.222,2846.7,2846.6,0.9518]
[1764589302081,0.222,2846.7,2846.6,4.46476283]
[1764589302862,0.222,2846.7,2846.6,0.9518]
[1764589303464,2.333,2846.7,2846.6,0.9518]
[1764589303879,0.222,2846.7,2846.6,0.9518]
[1764589304882,0.405504,2847.0,2846.6,4.46476283]
[1764589305075,3.86687571,2847.0,2846.9,0.4632]
[1764589305380,3.37601,2847.0,2846.9,0.4632]
[1764589305579,3.37601,2847.0,2846.9,0.9518]
[1764589305978,6.992362,2847.0,2846.9,0.4632]
[1764589307189,24.267535,2847.0,2846.7,0.4886]
[1764589307391,30.0,2846.8,2846.5,0.4886]
[1764589307888,30.0,2846.8,2846.7,0.4632]
[1764589308091,30.0,2846.8,2846.7,0.9518]
[1764589308488,30.405504,2846.8,2846.7,0.4632]
[1764589308671,20.06528,2846.8,2846.7,0.4632]
[1764589308989,23.45710446,2846.8,2846.7,0.4632]
[1764589309387,23.45710446,2846.8,2846.7,0.9518]
[1764589313790,10.361616,2846.8,2846.7,0.9483]
[1764589316299,10.361616,2846.8,2846.7,0.4632]
[1764589317069,10.361616,2846.8,2846.7,0.9483]
[1764589317269,12.41634685,2846.8,2846.7,0.9483]
[1764589318685,12.73304685,2846.8,2846.5,0.001]
[1764589318888,2.99893485,2846.8,2846.5,0.001]